Cogmind - Beta 11.1 @@@ ROGUE MODE // 2022.08.30 @ 21:11:04 Player: Hechtic Result: Destroyed by G-34 Mercenary with Small Laser Performance ------------- Evolutions (0) 0 Regions Visited (1) 200 Robots Destroyed (13) 65 Value Destroyed (325) 325 Prototype IDs (2) 40 Alien Tech Used (0) 0 Bonus (0) 0 TOTAL SCORE: 630 Bonus ------- None Cogmind --------- Core Integrity 0/250 Matter 300/300 Energy 100/100 System Corruption 0% Temperature Cool (6) Movement Core (100) Ox1 Location -10/Materials Parts ------- > --- POWER (1) -------- (None) > --- PROPULSION (2) --- (None) > --- UTILITY (2) ------ Small Storage Unit > --- WEAPON (2) ------- (None) > --- INVENTORY (8) ---- Ion Engine Light Ion Engine Light Treads Light Treads Wheel Compact Wheel Heat Sink Assault Rifle Peak State ------------ > --- POWER ------------ Light Ion Engine > --- PROPULSION ------- Aluminum Leg Aluminum Leg > --- UTILITY ---------- Small Storage Unit > --- WEAPON ----------- EM Pulse Gun Assault Rifle > --- INVENTORY -------- (None) [Rating: 6] Favorites ----------- Power Light Ion Engine Engine Light Ion Engine Propulsion Aluminum Leg Leg Aluminum Leg Utility Small Storage Unit Storage Small Storage Unit Weapon EM Pulse Gun Energy Gun EM Pulse Gun Ballistic Gun Assault Rifle Launcher Grenade Launcher Build | -11 -10 ------- Run | Scr Mat Slots Evolved . | . . Power . | . . Propulsion . | . . Utility . | . . Weapon . | . . Parts Attached 7 | 6 1 Power 1 | 1 . Engine 1 | 1 . Core . | . . Reactor . | . . Propulsion 2 | 2 . Treads . | . . Leg 2 | 2 . Wheel . | . . Hover . | . . Flight . | . . Utility 1 | 1 . Device . | . . Storage 1 | 1 . Processor . | . . Hackware . | . . Protection . | . . Artifact . | . . Weapon 3 | 2 1 Energy Gun 1 | 1 . Energy Cannon . | . . Ballistic Gun 1 | 1 . Ballistic Cannon . | . . Launcher 1 | . 1 Special Weapon . | . . Impact Weapon . | . . Slashing Weapon . | . . Piercing Weapon . | . . Special Melee Weapon . | . . Unidentified Prototypes . | . . Parts Lost 5 | . 5 Power 1 | . 1 Propulsion 2 | . 2 Utility . | . . Weapon 2 | . 2 Highest Loss Streak 4 | . 4 To Critical Strikes . | . . Average Slot Usage (%) 70 | . 70 Engine 12 | . 12 Leg 24 | . 24 Storage 14 | . 14 Energy Gun 10 | . 10 Ballistic Gun 1 | . 1 Launcher 6 | . 6 Naked Turns . | . . Heaviest Build 13 | 12 13 Greatest Support 20 | 20 20 Greatest Overweight (x) 3 | 3 . Average Overweight (x) . | . . Largest Inventory Capacity 8 | 8 8 Average Capacity 7 | 7 8 Most Carried 8 | 6 8 Average Carried 6 | 2 7 Final Capacity 8 | 8 8 Final Carried 8 | 6 8 Class Distribution -------------------- 100% | Mutant Dominant Class ---------------- Mutant | -10/Materials Resources | -11 -10 ----------- Run | Scr Mat Matter Collected 335 | 232 103 Remotely . | . . Salvage Created 413 | . 413 Parts 23 | . 23 Haulers Intercepted . | . . Recyclers Shooed 1 | . 1 Parts Field Recycled . | . . Retrieved Matter . | . . Parts Self-Destructed . | . . Prevented . | . . Kills | -11 -10 ------- Run | Scr Mat Combat Hostiles Destroyed 7 | . 7 Guns 3 | . 3 AOE 4 | . 4 Classes Destroyed 5 | . 5 Worker 1 | . 1 Builder 3 | . 3 Recycler 1 | . 1 Watcher 1 | . 1 Grunt 7 | . 7 Best Kill Streak 8 | . 8 Combat Bots Only 4 | . 4 Max Kills in Single Turn 3 | . 3 Gunslinging . | . . Exploded 2 | . 2 Melee . | . . Uniques/NPCs Destroyed . | . . Combat | -11 -10 -------- Run | Scr Mat Damage Taken 656 | . 656 Core 255 | . 255 Absorbed by Shields . | . . Core Remaining (%) 100 | 100 . Volleys Fired 33 | . 33 Largest 2 | . 2 Hottest 70 | . 70 Shots Fired 40 | . 40 Gun 33 | . 33 Cannon . | . . Launcher 7 | . 7 Special . | . . Kinetic . | . . Thermal . | . . Explosive 7 | . 7 Electromagnetic 33 | . 33 Robot Hit Streak 8 | . 8 Robot Miss Streak 4 | . 4 Penetration Max . | . . Secondary Targets . | . . Shots Hit Robots 21 | . 21 Core Hits 21 | . 21 Critical Kills . | . . Critical Parts Destroyed . | . . Critical Strikes . | . . Melee Attacks . | . . Impact . | . . Slashing . | . . Piercing . | . . Sneak Attacks . | . . Combat Hostiles . | . . Follow-up Attacks . | . . Damage Inflicted 882 | . 882 Guns 306 | . 306 Cannons . | . . Explosions 576 | . 576 Melee . | . . Ramming . | . . Kinetic . | . . Thermal 281 | . 281 Explosive 295 | . 295 Electromagnetic 306 | . 306 Impact . | . . Slashing . | . . Piercing . | . . Highest Corruption . | . . Average Corruption . | . . Corruption Purged . | . . Corruption Blocked . | . . Overload Shots . | . . Overflow Damage 7 | . 7 Projectiles . | . . Explosions 7 | . 7 Melee . | . . Knockbacks . | . . Impact . | . . Kinetic . | . . Secondary . | . . Self-Inflicted Damage 58 | . 58 Shots 2 | . 2 Rammed . | . . Targets Rammed . | . . Kicked . | . . Crushed . | . . Highest Temperature 159 | . 159 Average Temperature 50 | . 50 Received Heat Transfer 387 | . 387 Siege Activations . | . . Robots Corrupted . | . . Combat Hostiles . | . . Parts Fried 1 | . 1 Impact Corruptions . | . . Robots Melted . | . . Combat Hostiles . | . . Parts Melted . | . . Heat Transferred 300 | . 300 Parts Sabotaged . | . . Parts Stolen . | . . Parts Stripped . | . . Power Chain Reactions 3 | . 3 Missiles Intercepted . | . . Alert | -11 -10 ------- Run | Scr Mat Peak Influence 413 | . 413 Initial . | . . Average 163 | . 221 Maximum Alert Level 2 | . 2 Low Security (%) 58 | 100 44 Level 1 32 | . 43 Level 2 8 | . 11 Level 3 . | . . Level 4 . | . . Level 5 . | . . High Security . | . . Max Security . | . . Squads Dispatched 1 | . 1 Investigation . | . . Extermination . | . . Reinforcement 1 | . 1 Assault . | . . Garrison . | . . Intercept . | . . Searches Triggered . | . . Construction Impeded . | . . Haulers Reinforced . | . . Active Scanning Responses . | . . Cargo Convoy Interrupts . | . . Stealth | -11 -10 --------- Run | Scr Mat Distress Signals 2 | . 2 Communications Jammed . | . . Distress Signals . | . . Times Spotted 13 | . 13 Peak Tracking Total 6 | . 6 Tactical Retreats . | . . Traps | -11 -10 ------- Run | Scr Mat Traps Triggered . | . . Indirectly . | . . Trap Hack Attempts . | . . Triggered . | . . Disarmed . | . . Reprogrammed . | . . Reused . | . . Traps Extracted . | . . Installed . | . . Triggered . | . . Machines | -11 -10 ---------- Run | Scr Mat Machines Disabled 1 | . 1 Max in Single Turn 1 | . 1 Machines Sabotaged . | . . Garrisons Compromised . | . . Overloaded Fab Kills . | . . Hacking | -11 -10 --------- Run | Scr Mat Machines Accessed 1 | . 1 Terminals 1 | . 1 Fabricators . | . . Repair Stations . | . . Recycling Units . | . . Scanalyzers . | . . Garrison Access . | . . Total Hacks 2 | . 2 Successful 2 | . 2 Failed . | . . Catastrophic . | . . Database Lockouts . | . . Manual . | . . Terminals 2 | . 2 Fabricators . | . . Repair Stations . | . . Recycling Units . | . . Scanalyzers . | . . Garrison Access . | . . Terminal Hacks 2 | . 2 Prototype ID Bank 1 | . 1 Locate Traps 1 | . 1 Fabricator Hacks . | . . Repair Station Hacks . | . . Recycling Unit Hacks . | . . Scanalyzer . | . . Garrison Access Hacks . | . . Unauthorized Hacks . | . . Terminals . | . . Fabricators . | . . Repair Stations . | . . Recycling Units . | . . Scanalyzers . | . . Garrison Access . | . . Data Cores Recovered . | . . Used . | . . Hacking Detections . | . . Full Trace Events . | . . Feedback Events . | . . Feedback Blocked . | . . Robot Schematics Acquired . | . . Robots Built . | . . Authchips . | . . Time . | . . Total Robot Build Rating . | . . Part Schematics Acquired . | . . Parts Built . | . . Authchips . | . . Time . | . . Total Part Build Rating . | . . Parts Repaired . | . . Time . | . . Parts Recycled . | . . Recycled Matter . | . . Retrieved Matter . | . . Retrieved Components . | . . Parts Scanalyzed . | . . Part Schematics Acquired . | . . Parts Damaged . | . . Bothacking | -11 -10 ------------ Run | Scr Mat Used RIF Installer . | . . Robots Hacked . | . . Non-combat . | . . Combat . | . . Robot Hacks Applied . | . . Relay Couplers Released . | . . Fabnet Peak Effective % . | . . Robots Rewired . | . . Allies Hacked . | . . Hacks Repelled . | . . Allies | -11 -10 -------- Run | Scr Mat Total Allies . | . . Largest Group . | . . Highest-Rated Group . | . . Highest-Rated Ally . | . . Total Orders . | . . Ally Attacks . | . . Total Damage . | . . Kills . | . . Allies Corrupted . | . . Allies Melted . | . . Intel | -11 -10 ------- Run | Scr Mat Robot Analysis Total . | . . Derelict Logs Recovered . | . . Drone Launches . | . . Drone Recoveries . | . . Exploration | -11 -10 ------------- Run | Scr Mat Turns Passed 334 | 87 247 Spaces Moved 144 | 53 91 Core 8 | 8 . Treads . | . . Legs 136 | 45 91 Wheels . | . . Hover . | . . Flight . | . . Fastest Speed 50 | 50 120 Average Speed 119 | 119 120 Slowest Speed 200 | 200 120 Overloaded Moves . | . . Propulsion Burnouts . | . . Robots Hopped . | . . Cave-ins Triggered . | . . Exploration Rate (%) 16 | 4 29 Regions Visited 1 Branch Regions . Pre-discovered Areas . | . . Known Exits Taken . | . . Unknown Exits Taken 1 | 1 . Scrap Searched . | . . Spaces Dug . | . . Terrain Destroyed 50 | . 50 Melee . | . . Projectile . | . . AOE 50 | . 50 Terrain Rammed . | . . Walls Destroyed . | . . Machines Disabled . | . . Actions | -11 -10 --------- Run | Scr Mat Total 262 | 73 189 Wait 69 | 9 60 Move 143 | 52 91 Hop . | . . Pick Up 9 | 6 3 Fast Attach 6 | 6 . Attach . | . . Detach . | . . Swap 1 | . 1 Drop 1 | . 1 Fire 33 | . 33 Melee . | . . Ram . | . . Kick . | . . Crush . | . . Escape Stasis . | . . Rewire . | . . Trap . | . . Miscellaneous . | . . Route ------- -11/Scrapyard -10/Materials (discovered 1 exit: [*Min]) History --------- Turn | Location | Event 15 | -11/Scrapyard | Discovered new exit (range 16) 88 | -11/Scrapyard | Entered Materials 191 | -10/Materials | Discovered new exit (range 16) 294 | -10/Materials | Core integrity fell below 50% 316 | -10/Materials | Build established: Mutant 326 | -10/Materials | Core integrity fell below 20% 335 | -10/Materials | Destroyed by G-34 Mercenary with Small Laser Last Messages --------------- 00247_ R-06 Scavenger destroyed. 00249_ K-01 Serf collects debris. 00249_ Acquired 28 matter. 00250_ The unstable cave ceiling collapses. 00250_ U-05 Engineer destroyed. 00263_ Door malfunctions. 00270_ U-05 Engineer lays Concrete. 00271_ Chain reaction triggered in Lgt. Nuclear Core. 00271_ G-47 Trooper destroyed. 00271_ U-05 Engineer lays Concrete. 00271_ EM Pulse Gun destroyed. 00272_ U-05 Engineer builds a Wall. 00280_ U-05 Engineer builds a Door. 00285_ U-05 Engineer lays Concrete. 00286_ U-05 Engineer builds a Wall. 00290_ U-05 Engineer lays Concrete. 00291_ Aluminum Leg destroyed. 00292_ U-05 Engineer lays Concrete. 00303_ Lgt. Ion Engine destroyed. 00311_ Aluminum Leg destroyed. Map ----- +----------------------------------------------------+ | ?????????????????????????????????????????????????? | | ?????????????????????????????????????????????????? | | ?????????????????????????????????????????????????? | | ?????????????????????????????????????????????????? | | ?????????????????????????????????????????????????? | | ?????????????????????????????????????????????????? | | ?????????????????????????????????????????????????? | | ?????????????????????????????????????????? ??????? | | ?????????????????????????????? ????? < ?????? | | ?????????????????????????????? ????? ?????? | | ?????????????????????????????? ????? ?????? | | ?????????????????????????????? ????? ?????? | | ??????????????????????????????# #?????# ?????? | | ??????????????????????????????# #?????# ?????? | | ??????????????????????????????# #?????# ?????? | | ??????????????????????????????# #?????# ###??? | | ?????????????????????#+#####?## ##???## #??? | | ?????????????????????# ?# ##### ???? | | ?????????????????????# ! ?# ???? | | ?????????????????????# ??# ##??? | | ?????????????????????# ?## #??? | | ?????????????????????# ?# #???# ##??? | | ???????????????####??# ??## ! ######### ##?? | | ???????????????# ##;;;#####= # # ##? | | ???????????????# %= =% + ## #? | | ??????????" / g@ w% # # ##? | | ???????????????# * =%[ !######## = #?? | | ???????????????# ##+####+;= ;####### =# ##? | | ???????????????## ???????# # = * #? | | ??????????????????????????# T # #[ ##? | | ??????????????????????????# # * ##?? | | ??????????????????????????# # #?? | | ??????????????????????????# | # # ##?? | | ??????????????????????????# # # #??? | | ??????????????????????????######## # #??? | | ?????????????????????????????????# # #??? | | ?????????????????????????????????# # #??? | | ?????????????????????????????????#+########^^^#??? | | ?????????????????????????????????# ######## #??? | | ?????????????????????????????????# ## # #??? | | ?????????????????????????????????# ## # #??? | | ?????????????????????????????????# ## # #??? | | ????????????????????????????????## ## # #??? | | ??????????????????????????####### + # #??? | | ??????????????????????????# # # # #??? | | ??????????????????????????# " # + #? ???? | | ??????????????????????????#""" # # # #??? | | ??????????????????????????#""" # ####### #??? | | ??????????????????????????#""" # #??? | | ??????????????????????????# "" + #??? | +----------------------------------------------------+ Best States ------------- Heat Dissipation 25 Energy Generation 10 Energy Capacity 125 Matter Stores 300 Matter Capacity 300 Sight Range 16 Terrain Scan Density 10 Evasion (%) 55 Item Schematics ----------------- None Robot Schematics ------------------ None Fabricated ------------ Nothing Alien Tech Used ----------------- None Achievements -------------- None Challenges ------------ None Game ------ Seed CoolantCompactUnit Manual? 0 Play Time 00:08:11 Cumulative 17.9 hours Start 2022.04.24 @ 22:32:25 End 2022.08.30 @ 21:11:04 Sessions 5 Manual Loads 0 Difficulty Rogue Special Mode None Game No. 32 Rogue 32 Adventurer 0 Explorer 0 Win Type - Total 0 Types 0/0/0/0/0/0/0/0/0 Lore% 8 Gallery% 12 Achievement% 13 Wizard Run 0 Options --------- ASCII 0 Keyboard 0 Movement Mouse Keybinds 0 Fullscreen 1 Font 24/Smallcaps Map View 76x50 Tactical HUD 1 Map Filters NONE Filters NONE Steam 1 RUN: 66f1996d-d5fb-40ab-a87e-b07b91f22778